bitfinex/quotes_SOLUSD_20250216
["timestamp","ask_amount","ask_price","bid_price","bid_amount"]
[1739723400572,1.5,191.09,191.08,0.063]
[1739723401281,1.5,191.1,191.08,0.063]
[1739723401448,13.41184853,191.09,191.08,0.063]
[1739723402175,18.64494853,191.09,191.08,0.063]
[1739723402368,0.5,191.09,191.08,0.063]
[1739723402950,0.5,191.1,191.08,0.063]
[1739723403166,12.9042,191.11,191.08,0.063]
[1739723403370,0.5,191.09,191.08,0.063]
[1739723404780,1.5,191.09,191.08,0.063]
[1739723405558,14.41184853,191.09,191.08,0.063]
[1739723406180,19.64494853,191.09,191.08,0.063]
[1739723409087,20.14494853,191.09,191.08,0.063]
[1739723422194,19.64494853,191.09,191.08,0.063]
[1739723422373,20.14494853,191.09,191.08,0.063]
[1739723426395,19.14494853,191.09,191.08,0.063]
[1739723426700,5.2331,191.09,191.08,0.063]
[1739723426904,0.03,191.11,191.08,0.063]
[1739723427582,82.33,191.11,191.08,0.063]
[1739723431497,0.03,191.11,191.08,0.063]
[1739723431704,0.03,191.11,191.08,0.563]
[1739723432401,0.03,191.11,191.09,5.2331]
[1739723433508,0.03,191.11,191.09,5.7331]
[1739723436921,0.03,191.11,191.1,0.5]
[1739723437286,82.3,191.2,191.13,0.5]
[1739723437490,82.3,191.2,191.13,4.28]
[1739723439011,82.33,191.2,191.13,4.28]
[1739723439314,82.33,191.2,191.14,5.2317]
[1739723440907,82.33,191.2,191.15,0.5]
[1739723441106,82.33,191.2,191.16,5.2312]
[1739723442217,82.33,191.2,191.14,0.5]
[1739723442420,82.33,191.2,191.15,5.7314]
[1739723443119,0.03,191.2,191.17,0.5]
[1739723444419,0.03,191.2,191.18,5.2306]
[1739723444628,0.03,191.2,191.18,5.7306]
[1739723446709,0.03,191.2,191.19,0.5]
[1739723448724,0.03,191.2,191.19,5.7303]
[1739723453828,82.3,191.3,191.23,0.5]
[1739723454119,82.3,191.3,191.23,4.28]
[1739723455818,82.3,191.3,191.24,5.229]
[1739723456419,87.5274,191.3,191.24,5.229]
[1739723457130,82.3,191.3,191.24,5.229]
[1739723457534,82.3,191.3,191.25,0.5]
[1739723457835,82.3,191.3,191.26,5.2284]
[1739723459137,82.3,191.3,191.25,5.7287]
[1739723459314,82.3,191.3,191.25,5.2287]
[1739723460635,82.3,191.3,191.25,5.7287]
[1739723461036,82.3,191.3,191.25,5.2287]
[1739723462136,82.3,191.3,191.22,5.7293]
[1739723462137,87.5274,191.3,191.22,5.7293]
[1739723462333,88.5274,191.3,191.22,5.7293]
[1739723462525,6.4665,191.29,191.22,5.7293]
[1739723463136,6.4665,191.29,191.23,0.5]
[1739723463438,82.3,191.3,191.23,0.5]
[1739723463625,82.3,191.3,191.23,4.28]
[1739723464228,87.5274,191.3,191.23,4.28]
[1739723464437,87.5274,191.3,191.22,5.7293]
[1739723464626,87.5274,191.3,191.23,0.5]
[1739723465237,82.3,191.29,191.23,5.7291]
[1739723465416,82.3,191.29,191.23,5.2291]
[1739723465622,87.5276,191.29,191.23,5.2291]
[1739723466943,87.5276,191.29,191.22,5.7295]
[1739723469151,87.5276,191.29,191.23,5.7292]
[1739723469639,82.3,191.29,191.23,5.2292]
[1739723469946,82.3,191.29,191.23,5.7292]
[1739723470743,82.3,191.29,191.23,5.2292]
[1739723470948,82.3,191.29,191.23,5.7292]
[1739723471138,82.3,191.28,191.23,5.2292]
[1739723472241,82.3,191.28,191.23,5.7292]
[1739723474236,82.3,191.28,191.23,5.2292]
[1739723475344,5.2277,191.29,191.22,5.7295]
[1739723475345,82.3,191.27,191.22,5.7295]
[1739723476946,82.3,191.27,191.22,5.2295]
[1739723477244,82.3,191.27,191.22,5.7295]
[1739723478845,82.3,191.27,191.22,0.5]
[1739723480050,84.4254,191.26,191.2,0.063]
[1739723480230,83.3,191.25,191.2,0.063]
[1739723480558,83.3,191.24,191.2,0.063]
[1739723480922,5.2293,191.23,191.2,0.063]
[1739723481948,87.529,191.24,191.2,0.063]
[1739723482244,88.529,191.24,191.2,0.063]
[1739723482553,87.529,191.24,191.2,0.063]
[1739723482927,88.529,191.24,191.2,0.063]
[1739723483629,82.3,191.24,191.2,0.063]
[1739723484625,82.3,191.24,191.2,0.563]
[1739723484827,82.3,191.24,191.21,0.5]
[1739723485248,82.3,191.24,191.22,5.2295]
[1739723486129,82.3,191.24,191.23,0.5]
[1739723486740,1.6854,191.3,191.24,0.5]
[1739723486948,1.6854,191.3,191.25,0.5]
[1739723487442,1.6854,191.3,191.26,5.2284]
[1739723487959,1.6854,191.3,191.27,0.5]
[1739723488131,0.03,191.3,191.27,0.5]
[1739723489453,0.03,191.3,191.27,5.728]
[1739723492531,0.03,191.3,191.29,0.5]
[1739723494380,0.03,191.3,191.29,5.7276]
[1739723495777,0.03,191.3,191.27,0.5]
[1739723497251,0.03,191.3,191.26,5.7284]
[1739723497756,0.03,191.3,191.26,5.2284]
[1739723499078,0.03,191.3,191.26,5.7284]
[1739723501873,0.03,191.3,191.26,5.2284]
[1739723503977,0.03,191.3,191.26,5.7284]
[1739723504169,0.03,191.3,191.27,0.5]
[1739723506174,0.03,191.3,191.28,5.2279]
[1739723507269,0.03,191.3,191.27,5.7281]
[1739723510271,0.03,191.3,191.27,0.5]
[1739723512683,0.03,191.3,191.27,5.728]
[1739723514880,0.03,191.3,191.27,0.5]
[1739723516884,0.03,191.3,191.27,5.7281]
[1739723520880,0.03,191.3,191.29,0.5]
[1739723521375,0.03,191.3,191.28,0.5]
[1739723521579,0.03,191.3,191.25,5.7287]
[1739723521781,0.03,191.3,191.27,0.5]
[1739723522487,0.03,191.3,191.26,0.5]
[1739723522662,0.03,191.3,191.23,5.7292]
[1739723523371,0.03,191.3,191.24,0.5]
[1739723523771,0.03,191.3,191.25,5.7287]
[1739723524666,0.03,191.3,191.27,0.5]
[1739723524882,0.03,191.3,191.28,0.5]
[1739723525089,0.03,191.3,191.29,0.5]
[1739723525779,0.03,191.3,191.29,5.7276]
[1739723528674,0.03,191.3,191.28,5.7279]
[1739723528875,0.03,191.3,191.29,0.5]
[1739723529568,0.03,191.3,191.29,5.7276]
[1739723531293,0.03,191.3,191.28,5.7279]
[1739723531598,0.03,191.3,191.27,0.5]
[1739723531971,0.03,191.3,191.26,5.7282]
[1739723532601,0.03,191.3,191.24,0.5]
[1739723532803,0.03,191.3,191.23,88.529]
[1739723533104,0.03,191.3,191.24,0.5]
[1739723533597,0.03,191.3,191.23,83.3]
[1739723533775,0.03,191.3,191.23,82.8]
[1739723533977,0.03,191.3,191.23,88.0292]
[1739723534301,0.03,191.3,191.24,0.5]
[1739723535073,0.03,191.3,191.24,5.729]
[1739723536795,0.03,191.3,191.24,0.5]
[1739723537011,1.0,191.29,191.23,82.8]
[1739723537601,1.5542,191.27,191.23,82.8]
[1739723537810,1.5542,191.27,191.2,5.293]
[1739723537979,82.3,191.26,191.2,0.063]
[1739723539294,87.5286,191.26,191.2,0.063]
[1739723539972,82.3,191.26,191.2,0.063]
[1739723540177,87.5285,191.26,191.2,0.063]
[1739723540382,88.5285,191.26,191.2,0.063]
[1739723542096,82.3,191.26,191.2,0.063]
[1739723542478,82.3,191.25,191.21,0.5]
[1739723543402,82.3,191.25,191.2,0.063]
[1739723544403,82.3,191.25,191.2,0.563]
[1739723544701,82.3,191.25,191.21,0.5]
[1739723544898,82.3,191.25,191.22,0.5]
[1739723545806,82.3,191.25,191.22,5.7293]
[1739723548396,82.3,191.25,191.21,5.2297]
[1739723548599,82.3,191.25,191.2,5.293]
[1739723549501,82.3,191.25,191.22,0.5]
[1739723549724,82.3,191.25,191.2,5.293]
[1739723550584,82.3,191.25,191.21,0.5]
[1739723552617,82.3,191.25,191.21,5.7296]
[1739723554212,82.3,191.25,191.2,0.063]
[1739723554518,82.3,191.25,191.2,5.2931]
[1739723554692,82.3,191.25,191.21,0.5]
[1739723555219,82.3,191.25,191.2,5.7931]
[1739723555417,82.3,191.25,191.2,5.2931]
[1739723556223,82.3,191.25,191.2,5.7931]
[1739723557689,82.3,191.25,191.21,0.5]
[1739723558889,82.3,191.25,191.22,5.2295]
[1739723559704,82.3,191.25,191.21,5.7297]
[1739723566625,82.33,191.25,191.21,5.7297]
[1739723569831,82.33,191.25,191.21,0.5]
[1739723571233,82.33,191.25,191.22,5.2295]
[1739723572933,82.33,191.25,191.21,0.5]
[1739723573314,82.33,191.25,191.22,0.5]
[1739723574421,82.33,191.25,191.24,0.5]
[1739723574620,0.03,191.25,191.24,0.5]
[1739723574835,0.03,191.25,191.22,0.5]
[1739723575142,0.03,191.25,191.22,5.7295]
[1739723575517,0.03,191.25,191.22,5.2295]
[1739723575738,0.03,191.25,191.21,0.5]
[1739723575933,0.03,191.25,191.2,0.063]
[1739723575934,0.03,191.25,191.2,0.563]
[1739723576110,82.33,191.25,191.2,0.063]
[1739723579539,82.33,191.25,191.21,0.5]
[1739723579740,82.33,191.25,191.2,5.2931]
[1739723580145,82.33,191.25,191.21,0.5]
[1739723581839,82.33,191.25,191.22,5.2295]
[1739723582831,82.33,191.25,191.21,0.5]
[1739723583528,82.33,191.25,191.2,0.563]
[1739723583842,82.33,191.25,191.2,0.063]
[1739723584141,82.33,191.25,191.2,0.563]
[1739723584446,82.33,191.25,191.21,0.5]
[1739723585342,82.33,191.25,191.21,5.7298]
[1739723585915,82.33,191.25,191.21,5.2298]
[1739723586236,82.33,191.25,191.21,5.7298]
[1739723588139,82.33,191.25,191.2,5.2931]
[1739723588546,82.33,191.25,191.2,0.063]
[1739723588713,87.5588,191.25,191.2,0.063]
[1739723589632,82.33,191.25,191.2,0.563]
[1739723591869,82.33,191.25,191.2,5.793]
[1739723593360,82.33,191.25,191.2,0.063]
[1739723593556,87.5587,191.25,191.2,0.063]
[1739723594631,82.3,191.24,191.2,0.063]
[1739723597258,87.5291,191.24,191.2,0.063]
[1739723598365,82.3,191.24,191.2,0.063]
[1739723598872,82.3,191.23,191.2,0.063]
[1739723608671,82.3,191.23,191.2,5.2931]
[1739723611947,82.3,191.23,191.2,0.063]
[1739723614569,87.5293,191.23,191.2,0.063]
[1739723615761,82.3,191.23,191.2,0.063]
[1739723616678,0.03,191.24,191.2,0.063]
[1739723616679,82.3,191.22,191.2,0.063]
[1739723617880,82.3,191.22,191.2,5.2931]
[1739723619978,82.3,191.22,191.2,0.063]
[1739723625282,82.3,191.22,191.2,5.2931]
[1739723625860,82.3,191.22,191.2,0.063]
[1739723626356,82.3,191.21,191.2,0.063]
[1739723629692,82.3,191.21,191.2,5.2931]
[1739723632684,82.3,191.21,191.2,5.7931]
[1739723634573,0.03,191.22,191.2,5.7931]
[1739723635084,0.03,191.22,191.2,0.063]
[1739723636592,0.03,191.22,191.2,5.793]
[1739723637488,0.03,191.22,191.2,5.293]
[1739723639290,0.03,191.22,191.21,0.5]
[1739723639585,0.03,191.22,191.2,5.293]
[1739723640486,0.03,191.22,191.2,0.063]
[1739723641162,82.3,191.21,191.2,0.063]
[1739723646388,0.03,191.22,191.2,0.063]
[1739723654775,5.2595,191.22,191.2,0.063]
[1739723655626,1.6151,191.21,191.2,0.063]
[1739723659610,6.8449,191.21,191.2,0.063]
[1739723660579,21.25674853,191.21,191.2,0.063]
[1739723661101,20.25674853,191.21,191.2,0.063]
[1739723662289,15.02694853,191.21,191.2,0.063]
[1739723662497,1.6151,191.21,191.2,0.063]
[1739723663286,6.8449,191.21,191.2,0.063]
[1739723664098,21.25674853,191.21,191.2,0.063]
[1739723667803,20.25674853,191.21,191.2,0.063]
[1739723668908,21.25674853,191.21,191.2,0.063]
[1739723669205,20.25674853,191.21,191.2,0.063]
[1739723669388,21.25674853,191.21,191.2,0.063]
[1739723670006,20.25674853,191.21,191.2,0.063]
[1739723670205,1.6151,191.21,191.2,0.063]
[1739723670712,6.8449,191.21,191.2,0.063]
[1739723671009,6.8749,191.21,191.2,0.063]
[1739723671306,1.6451,191.21,191.2,0.063]
[1739723671610,0.03,191.21,191.2,0.063]
[1739723678326,0.03,191.21,191.2,0.563]
[1739723679909,0.03,191.21,191.2,5.7931]
[1739723680828,0.0001,191.21,191.2,5.7931]
[1739723693149,0.0001,191.21,191.2,5.2931]
[1739723693526,0.0001,191.21,191.2,0.063]
[1739723698530,13.41194853,191.21,191.2,0.063]
[1739723700543,0.0001,191.21,191.2,0.063]
[1739723703646,16.44674853,191.21,191.2,0.063]
[1739723704747,15.94674853,191.21,191.2,0.063]
[1739723705043,20.17654853,191.21,191.2,0.063]
[1739723705557,21.67654853,191.21,191.2,0.063]
[1739723705732,21.17654853,191.21,191.2,0.063]
[1739723705933,6.7647,191.21,191.2,0.063]
[1739723706648,1.5349,191.21,191.2,0.063]
[1739723708248,6.7647,191.21,191.2,0.063]
[1739723708749,21.67654853,191.21,191.2,0.063]
[1739723713429,20.67654853,191.21,191.2,0.063]
[1739723714236,21.67654853,191.21,191.2,0.063]
[1739723717647,23.74788484,191.21,191.2,0.063]
[1739723718066,21.67654853,191.21,191.2,0.063]
[1739723718767,23.75377208,191.21,191.2,0.063]
[1739723719067,1.0,191.18,191.11,0.063]
[1739723719366,5.2312,191.16,191.11,0.063]
[1739723722379,95.71184853,191.15,191.11,0.063]
[1739723723471,5.2317,191.14,191.11,0.063]
[1739723723657,82.3,191.13,191.11,0.063]
[1739723726746,87.532,191.13,191.11,0.063]
[1739723728475,82.3,191.13,191.11,0.063]
[1739723729577,82.3,191.12,191.11,0.063]
[1739723729783,6.2317,191.14,191.11,0.063]
[1739723729985,14.41184853,191.13,191.11,0.063]
[1739723730276,14.41184853,191.12,191.11,0.063]
[1739723731159,13.91184853,191.12,191.11,0.063]
[1739723731750,20.14414853,191.12,191.11,0.063]
[1739723732370,19.14414853,191.12,191.11,0.063]
[1739723733054,18.64414853,191.12,191.11,0.063]
[1739723733360,5.7317,191.14,191.11,0.063]
[1739723733560,13.41184853,191.13,191.11,0.063]
[1739723734363,19.14394853,191.13,191.11,0.063]
[1739723735281,18.64394853,191.13,191.11,0.063]
[1739723735581,19.14394853,191.13,191.11,0.063]
[1739723735766,20.14394853,191.13,191.11,0.063]
[1739723735959,19.14394853,191.13,191.11,0.063]
[1739723736279,18.64394853,191.13,191.11,0.063]
[1739723738762,19.14394853,191.13,191.11,0.063]
[1739723738965,20.14394853,191.13,191.11,0.063]
[1739723739261,19.14394853,191.13,191.11,0.063]
[1739723739455,18.64394853,191.13,191.11,0.063]
[1739723739861,19.64394853,191.13,191.11,0.063]
[1739723740080,20.14394853,191.13,191.11,0.063]
[1739723740556,14.91184853,191.12,191.11,0.063]
[1739723741668,26.41034853,191.12,191.11,0.063]
[1739723746583,25.91034853,191.12,191.11,0.063]
[1739723746787,26.41034853,191.12,191.11,0.063]
[1739723748594,26.41034853,191.12,191.11,0.0001]
[1739723751487,19.64414853,191.12,191.11,0.0001]
[1739723751872,20.14414853,191.12,191.11,0.0001]
[1739723754099,19.64414853,191.12,191.11,0.0001]
[1739723754282,18.64414853,191.12,191.11,0.0001]
[1739723755297,20.14414853,191.12,191.11,0.0001]
[1739723756971,18.64414853,191.12,191.11,0.0001]
[1739723759077,19.14414853,191.12,191.11,0.0001]
[1739723759494,18.64414853,191.12,191.11,0.0001]
[1739723760496,20.14414853,191.12,191.11,0.0001]
[1739723763385,19.64414853,191.12,191.11,0.0001]
[1739723764202,5.2323,191.12,191.11,0.0001]
[1739723764400,0.5,191.14,191.11,0.0001]
[1739723764401,18.64384853,191.13,191.11,0.0001]
[1739723765201,18.67384853,191.13,191.11,0.0001]
[1739723766499,0.03,191.13,191.11,0.0001]
[1739723767488,0.03,191.13,191.12,0.5]
[1739723768002,0.03,191.13,191.12,5.7323]
[1739723773405,0.03,191.13,191.12,0.5]
[1739723777286,0.03,191.13,191.12,0.5]
[1739723777493,0.03,191.13,191.12,5.7323]
[1739723781101,0.03,191.13,191.12,0.5]
[1739723782605,82.3,191.12,191.11,0.0001]
[1739723783700,0.03,191.13,191.11,0.0001]
[1739723783898,5.2323,191.12,191.11,0.0001]
[1739723786703,13.44184853,191.13,191.11,0.0001]
[1739723787316,0.03,191.13,191.11,0.0001]
[1739723788197,13.44184853,191.13,191.11,0.0001]
[1739723788802,5.2323,191.12,191.11,0.0001]
[1739723790414,0.03,191.13,191.11,0.0001]
[1739723797429,0.03,191.13,191.12,0.5]
[1739723797928,0.03,191.13,191.11,0.5001]
[1739723798242,0.03,191.13,191.11,0.0001]
[1739723798434,0.03,191.13,191.11,0.5001]
[1739723800749,82.3,191.12,191.11,0.5001]
[1739723803336,82.3,191.12,191.11,5.7326]
[1739723808841,82.3,191.12,191.11,0.5001]
[1739723809937,82.3,191.12,191.11,5.7326]
[1739723810239,82.3,191.12,191.11,0.5001]
[1739723810441,82.3,191.12,191.11,5.7326]
[1739723812553,0.03,191.13,191.12,0.5]
[1739723814122,0.03,191.13,191.12,5.7323]
[1739723819041,0.03,191.13,191.12,0.5]
[1739723820780,0.03,191.13,191.11,0.0001]
[1739723820781,0.03,191.13,191.11,0.5001]
[1739723820931,82.3,191.12,191.11,0.0001]
[1739723821343,0.03,191.13,191.11,0.5001]
[1739723822256,0.03,191.13,191.12,0.5]
[1739723822753,0.03,191.13,191.12,5.7323]
[1739723823464,0.03,191.13,191.12,0.5]
[1739723824456,0.03,191.13,191.12,5.7323]
[1739723832074,0.03,191.13,191.12,0.5]
[1739723835965,0.03,191.13,191.11,0.5001]
[1739723836154,0.03,191.13,191.11,0.0001]
[1739723836877,82.3,191.12,191.11,0.0001]
[1739723837173,0.03,191.13,191.11,0.0001]
[1739723840262,0.03,191.13,191.11,0.5001]
[1739723840572,0.03,191.13,191.12,0.5]
[1739723841875,8.44394426,191.13,191.12,0.5]
[1739723842673,0.03,191.13,191.12,0.5]
[1739723843359,8.44394426,191.13,191.12,0.5]
[1739723843556,8.44394426,191.13,191.11,0.0001]
[1739723843757,8.41394426,191.12,191.11,0.0001]
[1739723844171,8.41394426,191.12,191.11,0.5001]
[1739723847480,8.44394426,191.13,191.11,0.5001]
[1739723847669,8.44394426,191.13,191.12,0.5]
[1739723848562,0.03,191.13,191.12,0.5]
[1739723848978,0.03,191.13,191.12,5.7323]
[1739723850974,0.03,191.13,191.12,0.5]
[1739723862195,8.44394426,191.13,191.12,0.5]
[1739723862394,8.44394426,191.13,191.11,0.5001]
[1739723862604,8.41394426,191.12,191.11,0.5001]
[1739723863102,8.44394426,191.13,191.11,0.5001]
[1739723863307,8.44394426,191.13,191.12,0.5]
[1739723863676,0.03,191.13,191.12,0.5]
[1739723875125,0.03,191.13,191.12,5.7323]
[1739723875824,0.03,191.13,191.12,0.5]
[1739723878001,0.03,191.13,191.11,0.5001]
[1739723878302,8.44394426,191.13,191.12,0.5]
[1739723878519,0.03,191.13,191.11,0.5001]
[1739723879607,0.03,191.13,191.12,0.5]
[1739723879919,0.03,191.13,191.11,0.5001]
[1739723880115,8.44394426,191.13,191.11,0.5001]
[1739723880430,8.44394426,191.13,191.12,0.5]
[1739723881024,0.03,191.13,191.12,0.5]
[1739723885539,0.03,191.13,191.11,0.5001]
[1739723885824,90.71394426,191.12,191.11,0.5001]
[1739723886424,82.3,191.12,191.11,0.5001]
[1739723889632,82.3,191.12,191.11,5.7326]
[1739723890015,0.03,191.13,191.12,0.5]
[1739723891311,0.03,191.13,191.12,5.7323]
[1739723892015,0.03,191.13,191.12,14.14624426]
[1739723893231,8.44394426,191.13,191.12,0.5]
[1739723893437,28.44394426,191.13,191.11,0.5001]
[1739723893623,8.41394426,191.12,191.11,0.5001]
[1739723894030,28.44394426,191.13,191.11,0.5001]
[1739723894322,28.44394426,191.13,191.12,0.5]
[1739723895137,8.44394426,191.13,191.12,0.5]
[1739723895326,20.03,191.13,191.12,0.5]
[1739723896641,82.3,191.12,191.11,0.5001]
[1739723896824,90.71394426,191.12,191.11,0.5001]
[1739723897226,82.3,191.12,191.11,0.5001]
[1739723898843,90.71394426,191.12,191.11,0.5001]
[1739723899926,95.94624426,191.12,191.11,0.5001]
[1739723901520,90.71394426,191.12,191.11,0.5001]
[1739723901717,95.94624426,191.12,191.11,0.0001]
[1739723901921,13.64624426,191.12,191.11,0.5001]
[1739723902137,8.41394426,191.12,191.11,0.0001]
[1739723902344,28.44394426,191.13,191.11,0.5001]
[1739723902532,28.44394426,191.13,191.12,0.5]
[1739723905145,28.44394426,191.13,191.11,0.5001]
[1739723905351,8.41394426,191.12,191.11,0.5001]
[1739723908746,13.64624426,191.12,191.11,0.0001]
[1739723911340,29.69709279,191.12,191.11,0.0001]
[1739723911741,63.35286983,191.12,191.11,0.0001]
[1739723911942,69.58596983,191.12,191.11,0.0001]
[1739723912162,1.0,191.1,191.08,0.063]
[1739723912340,21.82579279,191.09,191.08,0.063]
[1739723912848,27.05889279,191.09,191.08,0.063]
[1739723914841,13.64704426,191.09,191.08,0.063]
[1739723915362,27.05889279,191.09,191.08,0.063]
[1739723918877,8.41394426,191.09,191.08,0.063]
[1739723919239,13.64704426,191.09,191.08,0.063]
[1739723924961,28.05889279,191.09,191.08,0.063]
[1739723926062,27.78273931,191.09,191.08,0.063]
[1739723927868,14.41184853,191.08,191.04,0.063]
[1739723928048,8.41394426,191.05,191.04,0.063]
[1739723929974,13.64814426,191.05,191.04,0.063]
[1739723931975,28.05999279,191.05,191.04,0.063]
[1739723933286,27.05999279,191.05,191.04,0.063]
[1739723935982,14.41184853,191.04,191.0,0.063]
[1739723936181,8.41394426,191.01,191.0,0.063]
[1739723939082,13.64924426,191.01,191.0,0.063]
[1739723942892,8.41394426,191.01,191.0,0.063]
[1739723944390,13.64924426,191.01,191.0,0.063]
[1739723947899,13.67924426,191.01,191.0,0.063]
[1739723954107,60.74686983,191.01,191.0,0.063]
[1739723961008,61.74686983,191.01,191.0,0.063]
[1739723961205,8.41394426,190.96,190.95,0.063]
[1739723962203,13.65054426,190.96,190.95,0.063]
[1739723963323,28.06239279,190.96,190.95,0.063]
[1739723966006,13.41184853,190.94,190.91,0.063]
[1739723966202,8.41394426,190.92,190.91,0.063]
[1739723967515,13.65164426,190.92,190.91,0.063]
[1739723967825,8.41394426,190.92,190.91,0.063]
[1739723968317,13.65164426,190.92,190.91,0.063]
[1739723969320,47.3074213,190.92,190.91,0.063]
[1739723969515,13.65164426,190.92,190.91,0.063]
[1739723970224,27.06349279,190.92,190.91,0.063]
[1739723970409,60.71926983,190.92,190.91,0.063]
[1739723976222,27.06349279,190.92,190.91,0.063]
[1739723977714,60.71926983,190.92,190.91,0.063]
[1739723978440,27.06349279,190.92,190.91,0.063]
[1739723979130,18.64954853,190.92,190.91,0.063]
[1739723980033,19.64954853,190.92,190.91,0.063]
[1739723983124,18.64954853,190.92,190.91,0.063]
[1739723983813,19.64954853,190.92,190.91,0.063]
[1739723984933,18.64954853,190.92,190.91,0.063]
[1739723985630,19.64954853,190.92,190.91,0.063]
[1739723985833,18.64954853,190.92,190.91,0.063]
[1739723986030,19.64954853,190.92,190.91,0.063]
[1739723986233,18.64954853,190.92,190.91,0.063]
[1739723987241,2.5029,190.94,190.91,0.063]
[1739723987442,1.0,190.95,190.91,0.063]
[1739723987944,13.41184853,190.94,190.91,0.063]
[1739723988140,14.41184853,190.94,190.91,0.063]
[1739723988724,5.2375,190.93,190.91,0.063]
[1739723989243,13.41184853,190.92,190.91,0.063]
[1739723992028,5.2377,190.92,190.91,0.063]
[1739723994051,14.44184853,190.94,190.91,0.063]
[1739723994350,13.41184853,190.92,190.91,0.063]
[1739723994938,5.2375,190.93,190.91,0.063]
[1739723996854,82.3,190.92,190.91,0.063]
[1739723998252,87.5377,190.92,190.91,0.063]
[1739724002849,13.44184853,190.94,190.91,0.063]
[1739724003052,5.2375,190.93,190.91,0.063]
[1739724008753,82.3,190.92,190.91,0.063]
[1739724009756,87.5377,190.92,190.91,0.063]
[1739724011163,82.3,190.92,190.91,0.063]
[1739724011752,0.03,190.94,190.91,0.063]
[1739724012064,0.03,190.94,190.92,0.5]
[1739724012944,0.03,190.94,190.93,0.5]
[1739724014967,0.03,190.94,190.93,5.7375]
[1739724015558,0.03,190.94,190.93,0.5]
[1739724021585,0.03,190.94,190.93,0.5]
[1739724024155,0.03,190.94,190.92,0.5]
[1739724024355,0.03,190.94,190.93,0.5]
[1739724031283,0.03,190.94,190.93,0.563]
[1739724031767,0.03,190.94,190.93,0.063]
[1739724032363,0.03,190.94,190.93,0.563]
[1739724033170,0.03,190.94,190.93,0.063]
[1739724036163,0.03,190.94,190.93,0.563]
[1739724036686,0.03,190.94,190.93,0.063]
[1739724044579,0.03,190.94,190.93,0.0001]
[1739724045195,1.03,190.94,190.93,0.0001]
[1739724046082,6.2672,190.94,190.93,0.0001]
[1739724048193,1.0,190.93,190.88,0.063]
[1739724048372,13.41184853,190.92,190.88,0.063]
[1739724050202,14.91184853,190.92,190.88,0.063]
[1739724050499,5.238,190.91,190.88,0.063]
[1739724052394,14.41184853,190.89,190.87,0.063]
[1739724052608,82.3,190.88,190.87,0.063]
[1739724052891,82.3,190.88,190.84,0.063]